Cogmind - Beta 10.2 @@@ ROGUE MODE // 2021.02.10 @ 15:52:43 Player: Zailor Result: Destroyed by Cetus Guard with Advanced Variable Charge Gun Performance ------------- Evolutions (6) 3000 Regions Visited (16) 3200 Robots Destroyed (97) 485 Value Destroyed (3407) 3407 Prototype IDs (4) 80 Alien Tech Used (0) 0 Bonus (1849) 1849 TOTAL SCORE: 12021 Bonus ------- High Alert Combat Kills 70 Follower Combat Kills 1034 Met Warlord at Base 500 MAIN.C Attacked Warlord 500 Friendly Fire -255 Cogmind --------- Core Integrity 0/1150 Matter 251/300 Energy 83/100 System Corruption 1% Temperature Cool (27) Movement Core (100) Ox1 Location -4/Cetus Parts ------- > --- POWER (3) -------- (None) > --- PROPULSION (4) --- (None) > --- UTILITY (10) ----- Improved Coolant Injector Advanced Signal Interpreter Improved Core Analyzer > --- WEAPON (2) ------- Phasing Sabre > --- INVENTORY (4) ---- Railgun Peak State ------------ > --- POWER ------------ Neutrino Core Micro Fission Core Light Antimatter Reactor > --- PROPULSION ------- Improved Treads Heavy Treads Myomer Leg > --- UTILITY ---------- Advanced Heat Sink Improved Coolant Injector Enhanced Optical Array Advanced Signal Interpreter Long-range Terrain Scanner Advanced Melee Analysis Suite Improved Core Analyzer Improved Armor Integrity Analyzer Hardened Medium Armor Plating Medium Regenerative Plating > --- WEAPON ----------- KE Penetrator KE Penetrator > --- INVENTORY -------- Compact Wheel Railgun Precision Grenade Launcher Phasing Sabre [Rating: 101] Favorites ----------- Power Micro Nuclear Core Engine Light Ion Engine Power Core Micro Nuclear Core Reactor Light Antimatter Reactor Propulsion Aluminum Leg Treads Light Treads Leg Aluminum Leg Wheel Compact Wheel Flight Unit Xenon Bombardment Thruster Utility Large Storage Unit Device Advanced Weight Redist. System Storage Large Storage Unit Processor Enhanced Optical Array Hackware Makeshift Hacking Suite Protection Improved Light Armor Plating Weapon Assault Rifle Energy Gun Medium Laser Energy Cannon Plasma Cannon Ballistic Gun Assault Rifle Launcher Improved Grenade Launcher Slashing Weapon Ripper Piercing Weapon Makeshift Spear Build | -11 -10 -10 -9 -8 -7 -7 -7 -6 -5 -5 -5 -5 -4 -4 -4 -4 ------- Run | Scr Mat Min Mat Mat Fac Low Low Fac Fac Upp Upp War Pro Fac Ext Cet Slots Evolved 12 | . . . 2 2 2 . . 2 2 . . . . 2 . . Power 2 | . . . . . 1 . . . . . . . . 1 . . Propulsion 2 | . . . . . 1 . . 1 . . . . . . . . Utility 8 | . . . 2 2 . . . 1 2 . . . . 1 . . Weapon . | . . . . . . . . . . . . . . . . . Parts Attached 192 | 7 1 1 17 32 31 21 3 19 1 3 6 1 4 7 34 4 Power 33 | 1 . . 1 6 7 2 1 3 . . . . . 3 9 . Engine 9 | 1 . . 1 3 . 2 1 1 . . . . . . . . Core 20 | . . . . 3 7 . . 2 . . . . . 2 6 . Reactor 4 | . . . . . . . . . . . . . . 1 3 . Propulsion 51 | 2 . 1 4 7 11 5 1 5 . 1 . . . 1 13 . Treads 13 | . . . . 6 3 . 1 . . . . . . . 3 . Leg 24 | 2 . 1 3 1 7 5 . . . . . . . . 5 . Wheel 2 | . . . 1 . . . . . . . . . . . 1 . Hover . | . . . . . . . . . . . . . . . . . Flight 12 | . . . . . 1 . . 5 . 1 . . . 1 4 . Utility 57 | 2 1 . 5 8 5 6 . 9 1 2 5 1 4 3 5 . Device 18 | . . . 1 1 1 1 . 5 . 2 1 . 1 2 3 . Storage 10 | 2 1 . 2 2 . . . 1 . . 2 . . . . . Processor 13 | . . . . 4 1 1 . 1 1 . 1 1 2 1 . . Hackware 3 | . . . . . . . . 1 . . 1 . 1 . . . Protection 13 | . . . 2 1 3 4 . 1 . . . . . . 2 . Artifact . | . . . . . . . . . . . . . . . . . Weapon 51 | 2 . . 7 11 8 8 1 2 . . 1 . . . 7 4 Energy Gun 12 | 1 . . 2 6 2 1 . . . . . . . . . . Energy Cannon 1 | . . . . . . 1 . . . . . . . . . . Ballistic Gun 22 | 1 . . 3 4 3 2 1 1 . . . . . . 5 2 Ballistic Cannon . | . . . . . . . . . . . . . . . . . Launcher 9 | . . . 2 . 3 2 . . . . . . . . 2 . Special Weapon . | . . . . . . . . . . . . . . . . . Impact Weapon . | . . . . . . . . . . . . . . . . . Slashing Weapon 6 | . . . . . . 2 . 1 . . 1 . . . . 2 Piercing Weapon 1 | . . . . 1 . . . . . . . . . . . . Special Melee Weapon . | . . . . . . . . . . . . . . . . . Unidentified Prototypes 4 | . . . 1 . 1 1 . . . . . . . . 1 . Parts Lost 70 | . . . 3 5 11 9 3 1 . . 3 3 7 2 19 4 Power 16 | . . . . 2 3 3 1 . . . . . 2 1 4 . Propulsion 18 | . . . 1 . 3 3 . . . . 1 1 2 . 5 2 Utility 22 | . . . 1 1 1 1 1 1 . . 2 2 2 1 8 1 Weapon 14 | . . . 1 2 4 2 1 . . . . . 1 . 2 1 Highest Loss Streak 13 | . . . 2 1 5 4 2 1 . . 3 3 7 2 13 4 Average Slot Usage (%) 91 | . 100 100 87 98 93 90 88 95 87 95 94 92 82 64 85 33 Engine 4 | . 14 14 11 6 . 3 7 3 . . . . . . . . Core 6 | . . . . 2 12 7 . 8 11 11 11 11 9 1 10 . Treads 6 | . . . . 15 5 10 5 . . . . . . . 6 . Leg 10 | . 28 28 21 2 14 11 16 . . . . . . . 6 . Flight 2 | . . . . . . . . 22 17 18 18 16 9 2 1 6 Device 6 | . . . 4 9 3 . . 12 17 26 23 17 16 12 17 5 Storage 15 | . 28 28 22 18 15 15 15 6 5 5 8 11 10 5 . . Processor 16 | . . . . 19 19 19 15 13 16 17 17 16 16 25 25 14 Protection 5 | . . . 6 6 6 9 11 5 5 1 . . . . 3 . Energy Gun 3 | . 14 14 7 8 1 . . . . . . . . . . . Ballistic Gun 7 | . 14 14 13 9 8 3 14 6 5 5 . . . . 6 6 Launcher 1 | . . . . . 3 1 . . . . . . . . . . Slashing Weapon 2 | . . . . . . 3 . 5 5 5 10 11 10 5 1 . Naked Turns . | . . . . . . . . . . . . . . . . . Heaviest Build 63 | 15 19 19 44 50 56 59 55 53 28 32 34 33 33 30 63 12 Greatest Support 102 | 20 20 25 25 44 45 42 35 46 39 48 48 41 34 32 102 20 Greatest Overweight (x) 3 | 3 . . 2 2 3 3 2 2 1 1 1 1 1 2 2 3 Average Overweight (x) . | . . . . 1 1 1 1 . . . . . . . . . Largest Inventory Capacity 16 | 8 10 10 16 16 16 16 16 16 6 6 6 6 6 4 4 4 Average Capacity 12 | 6 8 10 11 16 16 16 16 6 6 6 6 6 5 4 4 4 Most Carried 16 | 4 10 10 15 16 16 16 16 16 6 6 6 6 6 3 4 3 Average Carried 12 | 3 7 9 10 15 15 15 16 6 6 5 5 5 5 3 3 1 Final Capacity 16 | 8 10 10 16 16 16 16 16 6 6 6 6 6 4 4 4 4 Final Carried 16 | 4 10 10 15 16 16 16 16 6 6 6 6 6 4 3 3 1 Class Distribution -------------------- 53% | Mutant 34% | Scavenger-Mutant 10% | Derelict-Mutant Dominant Class ---------------- Mutant | -10/Materials Mutant | -10/Mines Mutant | -9/Materials Scavenger-Mutant | -8/Materials Scavenger-Mutant | -7/Factory Mutant | -7/Lower Caves Scavenger-Mutant | -7/Lower Caves Mutant | -6/Factory Mutant | -5/Factory Mutant | -5/Upper Caves Derelict-Mutant | -5/Upper Caves Derelict-Mutant | -5/Warlord Derelict-Mutant | -4/Proximity Caves Derelict-Mutant | -4/Factory Scavenger-Mutant | -4/Extension Mutant | -4/Cetus Resources | -11 -10 -10 -9 -8 -7 -7 -7 -6 -5 -5 -5 -5 -4 -4 -4 -4 ----------- Run | Scr Mat Min Mat Mat Fac Low Low Fac Fac Upp Upp War Pro Fac Ext Cet Matter Collected 3738 | 270 . 144 380 509 486 783 180 100 . 72 72 42 53 50 597 . Remotely . | . . . . . . . . . . . . . . . . . Salvage Created 3917 | 79 . 44 477 895 609 391 435 . . . . . 80 121 786 . Parts 211 | 3 . 7 37 57 35 11 14 . . . . . 3 7 37 . Haulers Intercepted 1 | . . . 1 . . . . . . . . . . . . . Recyclers Shooed 5 | . . . 1 2 . . . . . . . . . 1 1 . Parts Field Recycled . | . . . . . . . . . . . . . . . . . Retrieved Matter . | . . . . . . . . . . . . . . . . . Parts Self-Destructed 27 | . . . . . . 3 10 . . . . 11 3 . . . Prevented 13 | . . . . . . 2 3 . . . . 5 3 . . . Kills | -11 -10 -10 -9 -8 -7 -7 -7 -6 -5 -5 -5 -5 -4 -4 -4 -4 ------- Run | Scr Mat Min Mat Mat Fac Low Low Fac Fac Upp Upp War Pro Fac Ext Cet Combat Hostiles Destroyed 80 | . . 3 16 20 15 11 6 . . . . . 1 3 5 . Melee 5 | . . . . . . . . . . . . . 1 3 1 . Guns 53 | . . 3 8 20 10 2 6 . . . . . . . 4 . Cannons 1 | . . . . . . 1 . . . . . . . . . . AOE 21 | . . . 8 . 5 8 . . . . . . . . . . Classes Destroyed 15 | 1 . 1 3 3 3 3 . . . . . . . . 1 . Worker 1 | . . . . . . . . . . . . . . . 1 . Builder 3 | . . . . 1 . . . . . . . . . . 2 . Tunneler 4 | . . . . 1 1 . . . . . . . . . 2 . Hauler 1 | . . . 1 . . . . . . . . . . . . . Recycler 4 | 1 . . . 1 . . . . . . . . . . 2 . Watcher 2 | . . . . . 2 . . . . . . . . . . . Swarmer 19 | . . 3 7 7 . . . . . . . . . 2 . . Grunt 27 | . . . 8 6 6 1 2 . . . . . 1 1 2 . Brawler 4 | . . . . . . 2 2 . . . . . . . . . Duelist 4 | . . . . . 1 1 2 . . . . . . . . . Sentry 11 | . . . 1 6 1 1 1 . . . . . . . 1 . Hunter 6 | . . . . 1 3 . . . . . . . . . 2 . Programmer 4 | . . . . . 4 . . . . . . . . . . . Thief 1 | . . . . . . 1 . . . . . . . . . . Thug 1 | . . . . . . 1 . . . . . . . . . . Butcher 4 | . . . . . . 3 . . . . . . . . 1 . Mutant 1 | . . . . . . 1 . . . . . . . . . . Best Kill Streak 6 | 1 . 3 5 4 6 5 3 . . . . . 1 3 5 . Combat Bots Only 5 | . . 3 5 4 3 5 3 . . . . . 1 3 2 . Max Kills in Single Turn 4 | 1 . 1 4 1 2 3 2 . . . . . 1 1 2 . Gunslinging . | . . . . . . . . . . . . . . . . . Exploded 4 | . . . 4 . 1 3 . . . . . . . . . . Melee 1 | . . . . . . . . . . . . . 1 1 1 . Uniques/NPCs Destroyed . | . . . . . . . . . . . . . . . . . Combat | -11 -10 -10 -9 -8 -7 -7 -7 -6 -5 -5 -5 -5 -4 -4 -4 -4 -------- Run | Scr Mat Min Mat Mat Fac Low Low Fac Fac Upp Upp War Pro Fac Ext Cet Damage Taken 11544 | . . 103 599 1584 1871 1738 391 267 36 . 223 108 662 280 2734 948 Core 2388 | . . 22 80 274 311 162 39 . . . 62 23 258 87 464 606 Absorbed by Shields 91 | . . . . . . . . . . . . . . . 91 . Core Remaining (%) 73 | 100 . 91 80 50 . . 26 100 . . . . 65 . . . Volleys Fired 294 | 5 . 8 34 70 74 47 17 . . . . . . . 38 1 Largest 2 | 1 . 2 2 2 2 2 2 . . . . . . . 2 2 Hottest 97 | 50 . 70 70 88 92 97 51 . . . . . . . 66 68 Shots Fired 473 | 5 . 16 62 130 110 49 30 . . . . . . . 69 2 Gun 436 | 5 . 16 57 130 95 36 30 . . . . . . . 65 2 Cannon 6 | . . . . . . 6 . . . . . . . . . . Launcher 31 | . . . 5 . 15 7 . . . . . . . . 4 . Special . | . . . . . . . . . . . . . . . . . Kinetic 330 | . . 8 55 62 76 32 30 . . . . . . . 65 2 Thermal 102 | 5 . 8 2 58 19 10 . . . . . . . . . . Explosive 31 | . . . 5 . 15 7 . . . . . . . . 4 . Electromagnetic 10 | . . . . 10 . . . . . . . . . . . . Robot Hit Streak 24 | 2 . 4 13 15 24 20 5 . . . . . . . 7 . Robot Miss Streak 6 | 2 . 5 2 3 6 3 3 . . . . . . . 5 2 Penetration Max 1 | . . . . . 1 . 1 . . . . . . . 1 . Secondary Targets 3 | . . . . 1 . . . . . . . . . . 2 . Max Gunslinging Chain 1 | . . . . 1 . . . . . . . . . . 1 . Shots Hit Robots 362 | 2 . 7 44 98 90 44 23 . . . . . 1 9 42 2 Core Hits 216 | 2 . 3 24 43 54 24 24 . . . . . 1 4 37 . Critical Hits 10 | . . . 1 . 1 . 1 . . . . . . . 7 . Critical Kills 3 | . . . . . . . . . . . . . . . 3 . Critical Parts Destroyed 3 | . . . 1 . 1 . . . . . . . . . 1 . Melee Attacks 76 | . . . . 8 . 15 . 8 . 1 3 13 3 22 1 2 Impact . | . . . . . . . . . . . . . . . . . Slashing 68 | . . . . . . 15 . 8 . 1 3 13 3 22 1 2 Piercing 8 | . . . . 8 . . . . . . . . . . . . Sneak Attacks 1 | . . . . . . . . . . . . . . 1 . . Combat Hostiles . | . . . . . . . . . . . . . . . . . Follow-up Attacks . | . . . . . . . . . . . . . . . . . Damage Inflicted 9248 | 51 . 89 890 1486 2201 1650 589 . . . . . 46 380 1765 101 Guns 6008 | 51 . 89 512 1486 1236 576 589 . . . . . . . 1469 . Cannons 149 | . . . . . . 149 . . . . . . . . . . Explosions 2513 | . . . 378 . 965 909 . . . . . . . . 261 . Melee 577 | . . . . . . 16 . . . . . . 46 380 34 101 Ramming 1 | . . . . . . . . . . . . . . . 1 . Kinetic 4568 | . . 27 486 591 907 499 589 . . . . . . . 1469 . Thermal 1482 | 51 . 62 26 788 329 226 . . . . . . . . . . Explosive 2503 | . . . 378 . 955 909 . . . . . . . . 261 . Electromagnetic 117 | . . . . 107 10 . . . . . . . . . . . Impact . | . . . . . . . . . . . . . . . . . Slashing 577 | . . . . . . 16 . . . . . . 46 380 34 101 Piercing . | . . . . . . . . . . . . . . . . . Highest Corruption 10 | . . . . 7 3 3 3 . . . 10 10 5 . 1 1 Average Corruption 3 | . . . . 4 1 3 3 . . . 10 6 5 . 1 1 Corruption Purged . | . . . . . . . . . . . . . . . . . Effects 133 | . . . . 47 14 42 5 . . . 8 2 8 . 7 . Message Errors 37 | . . . . 13 7 11 1 . . . . 1 2 . 2 . Matter Fused 27 | . . . . 8 2 12 . . . . 2 1 2 . . . Heat Flow Errors 15 | . . . . 3 2 7 . . . . 1 . 2 . . . Energy Discharges 16 | . . . . 3 1 7 1 . . . 2 . 1 . 1 . Parts Rejected 2 | . . . . 2 . . . . . . . . . . . . Data Loss (minor) 12 | . . . . 2 2 1 2 . . . 1 . 1 . 3 . Data Loss (major) 2 | . . . . 1 . . . . . . 1 . . . . . Misfires 2 | . . . . 2 . . . . . . . . . . . . Misdirections 1 | . . . . . . . . . . . 1 . . . . . Targeting Errors 16 | . . . . 12 . 2 1 . . . . . . . 1 . Weapon Failures 3 | . . . . 1 . 2 . . . . . . . . . . Overload Shots . | . . . . . . . . . . . . . . . . . Overflow Damage 111 | . . . . . 27 23 . . . . . . . 61 . . Projectiles 10 | . . . . . . 10 . . . . . . . . . . Explosions 40 | . . . . . 27 13 . . . . . . . . . . Melee 61 | . . . . . . . . . . . . . . 61 . . Knockbacks . | . . . . . . . . . . . . . . . . . Impact . | . . . . . . . . . . . . . . . . . Kinetic . | . . . . . . . . . . . . . . . . . Secondary . | . . . . . . . . . . . . . . . . . Self-Inflicted Damage 168 | . . . . . 9 159 . . . . . . . . . . Shots 5 | . . . . . 1 4 . . . . . . . . . . Rammed 1 | . . . . . . . . . . . . . . . 1 . Targets Rammed 1 | . . . . . . . . . . . . . . . 1 . Kicked . | . . . . . . . . . . . . . . . . . Crushed . | . . . . . . . . . . . . . . . . . Highest Temperature 387 | 50 . 72 15 256 387 259 38 38 . . 197 . 198 . 3 . Average Temperature 76 | 26 . 37 8 132 131 62 15 11 . . 106 . 78 . 3 . Received Heat Transfer 2135 | . . . 234 459 441 195 153 . . . . . 198 54 257 144 Effects 8 | . . . . 1 7 . . . . . . . . . . . Shutdowns 2 | . . . . . 2 . . . . . . . . . . . Energy Bleed 2 | . . . . 1 1 . . . . . . . . . . . Interference 4 | . . . . . 4 . . . . . . . . . . . Siege Activations . | . . . . . . . . . . . . . . . . . Robots Corrupted . | . . . . . . . . . . . . . . . . . Combat Hostiles . | . . . . . . . . . . . . . . . . . Parts Fried 2 | . . . . . . . . . . . . . . . 2 . Impact Corruptions . | . . . . . . . . . . . . . . . . . Robots Melted . | . . . . . . . . . . . . . . . . . Combat Hostiles . | . . . . . . . . . . . . . . . . . Parts Melted 2 | . . . . 2 . . . . . . . . . . . . Heat Transferred 3260 | 148 . 185 74 1776 629 448 . . . . . . . . . . Parts Sabotaged . | . . . . . . . . . . . . . . . . . Parts Stolen 1 | . . . . . . 1 . . . . . . . . . . Parts Stripped . | . . . . . . . . . . . . . . . . . Power Chain Reactions . | . . . . . . . . . . . . . . . . . Missiles Intercepted . | . . . . . . . . . . . . . . . . . Alert | -11 -10 -10 -9 -8 -7 -7 -7 -6 -5 -5 -5 -5 -4 -4 -4 -4 ------- Run | Scr Mat Min Mat Mat Fac Low Low Fac Fac Upp Upp War Pro Fac Ext Cet Peak Influence 507 | 5 39 85 252 281 248 . . 113 66 . . . . 146 507 201 Initial 184 | . 3 15 . 80 97 . . 64 51 . . . . 34 71 184 Average 112 | 1 24 17 140 141 80 . . 81 52 . . . . 76 312 183 Maximum Alert Level 2 | . . . 1 1 1 . . . . . . . . . 2 1 Low Security (%) 80 | 100 100 100 83 63 93 . . 100 100 . . . . 100 24 94 Level 1 15 | . . . 16 36 6 . . . . . . . . . 34 5 Level 2 3 | . . . . . . . . . . . . . . . 41 . Level 3 . | . . . . . . . . . . . . . . . . . Level 4 . | . . . . . . . . . . . . . . . . . Level 5 . | . . . . . . . . . . . . . . . . . High Security . | . . . . . . . . . . . . . . . . . Max Security . | . . . . . . . . . . . . . . . . . Squads Dispatched 15 | . . . 2 2 7 . . . . . . . . 1 3 . Investigation 5 | . . . 1 2 1 . . . . . . . . . 1 . Extermination 4 | . . . . . 3 . . . . . . . . 1 . . Reinforcement 5 | . . . 1 . 2 . . . . . . . . . 2 . Assault . | . . . . . . . . . . . . . . . . . Garrison 1 | . . . . . 1 . . . . . . . . . . . Intercept . | . . . . . . . . . . . . . . . . . Construction Impeded 3 | . . . . . 1 . . . . . . . . . 2 . Haulers Reinforced . | . . . . . . . . . . . . . . . . . Stealth | -11 -10 -10 -9 -8 -7 -7 -7 -6 -5 -5 -5 -5 -4 -4 -4 -4 --------- Run | Scr Mat Min Mat Mat Fac Low Low Fac Fac Upp Upp War Pro Fac Ext Cet Distress Signals 8 | . . . . 2 2 . . . . . . . . . 3 1 Communications Jammed . | . . . . . . . . . . . . . . . . . Distress Signals . | . . . . . . . . . . . . . . . . . Times Spotted 184 | . 1 3 21 36 33 13 6 3 3 . . 10 10 8 32 5 Peak Tracking Total 6 | . 1 3 6 5 6 5 3 2 4 . . 4 4 3 6 5 Tactical Retreats 14 | . . . . 3 1 1 . 1 . . . 2 4 2 . . Traps | -11 -10 -10 -9 -8 -7 -7 -7 -6 -5 -5 -5 -5 -4 -4 -4 -4 ------- Run | Scr Mat Min Mat Mat Fac Low Low Fac Fac Upp Upp War Pro Fac Ext Cet Traps Triggered 7 | . . . 2 1 2 . . 1 . . . . . 1 . . Indirectly . | . . . . . . . . . . . . . . . . . Trap Hack Attempts . | . . . . . . . . . . . . . . . . . Triggered . | . . . . . . . . . . . . . . . . . Disarmed . | . . . . . . . . . . . . . . . . . Reprogrammed . | . . . . . . . . . . . . . . . . . Reused . | . . . . . . . . . . . . . . . . . Traps Extracted . | . . . . . . . . . . . . . . . . . Installed . | . . . . . . . . . . . . . . . . . Triggered 9 | . . . . . . 1 2 . . . . 4 2 . . . Machines | -11 -10 -10 -9 -8 -7 -7 -7 -6 -5 -5 -5 -5 -4 -4 -4 -4 ---------- Run | Scr Mat Min Mat Mat Fac Low Low Fac Fac Upp Upp War Pro Fac Ext Cet Machines Disabled 4 | . . . 1 . 2 1 . . . . . . . . . . Max in Single Turn 2 | . . . 1 . 2 1 . . . . . . . . . . Garrison Access 1 | . . . . . . . . . . . . . . 1 . . Machines Sabotaged . | . . . . . . . . . . . . . . . . . Garrisons Compromised . | . . . . . . . . . . . . . . . . . Overloaded Fab Kills . | . . . . . . . . . . . . . . . . . Fab Network Shutdowns . | . . . . . . . . . . . . . . . . . Hacking | -11 -10 -10 -9 -8 -7 -7 -7 -6 -5 -5 -5 -5 -4 -4 -4 -4 --------- Run | Scr Mat Min Mat Mat Fac Low Low Fac Fac Upp Upp War Pro Fac Ext Cet Machines Accessed 29 | . 3 2 . 7 6 . . 2 . . . . . 1 8 . Terminals 23 | . 3 . . 7 4 . . 1 . . . . . . 8 . Fabricators . | . . . . . . . . . . . . . . . . . Repair Stations 1 | . . . . . . . . 1 . . . . . . . . Recycling Units . | . . . . . . . . . . . . . . . . . Scanalyzers . | . . . . . . . . . . . . . . . . . Garrison Access 3 | . . . . . 2 . . . . . . . . 1 . . Total Hacks 56 | . 9 2 . 17 11 . . 4 . . . . . 1 12 . Successful 23 | . 5 2 . 4 1 . . 3 . . . . . 1 7 . Failed 33 | . 4 . . 13 10 . . 1 . . . . . . 5 . Catastrophic 7 | . . . . 4 2 . . 1 . . . . . . . . Database Lockouts . | . . . . . . . . . . . . . . . . . Manual 25 | . 7 . . 14 1 . . 1 . . . . . . 2 . Terminals 48 | . 9 . . 17 8 . . 2 . . . . . . 12 . Fabricators . | . . . . . . . . . . . . . . . . . Repair Stations 2 | . . . . . . . . 2 . . . . . . . . Recycling Units . | . . . . . . . . . . . . . . . . . Scanalyzers . | . . . . . . . . . . . . . . . . . Garrison Access 4 | . . . . . 3 . . . . . . . . 1 . . Terminal Hacks 15 | . 3 2 . 3 . . . . . . . . . . 7 . Open Door 8 | . . 2 . . . . . . . . . . . . 6 . Branch Access Points 2 | . 1 . . 1 . . . . . . . . . . . . Terminal Index 1 | . 1 . . . . . . . . . . . . . . . Unreport Threat 2 | . . . . 1 . . . . . . . . . . 1 . Hauler Manifests 1 | . . . . 1 . . . . . . . . . . . . Zone Layout 1 | . 1 . . . . . . . . . . . . . . . Fabricator Hacks . | . . . . . . . . . . . . . . . . . Repair Station Hacks 2 | . . . . . . . . 2 . . . . . . . . Scan Component 1 | . . . . . . . . 1 . . . . . . . . Repair 1 | . . . . . . . . 1 . . . . . . . . Recycling Unit Hacks . | . . . . . . . . . . . . . . . . . Scanalyzer . | . . . . . . . . . . . . . . . . . Garrison Access Hacks 1 | . . . . . . . . . . . . . . 1 . . Seal Access 1 | . . . . . . . . . . . . . . 1 . . Unauthorized Hacks 5 | . 2 . . 1 1 . . 1 . . . . . . . . Terminals 5 | . 2 . . 1 1 . . 1 . . . . . . . . Botnet 5 | . 2 . . 1 1 . . 1 . . . . . . . . Fabricators . | . . . . . . . . . . . . . . . . . Repair Stations . | . . . . . . . . . . . . . . . . . Recycling Units . | . . . . . . . . . . . . . . . . . Scanalyzers . | . . . . . . . . . . . . . . . . . Garrison Access . | . . . . . . . . . . . . . . . . . Data Cores Recovered . | . . . . . . . . . . . . . . . . . Used . | . . . . . . . . . . . . . . . . . Hacking Detections 23 | . 2 . . 7 6 . . 2 . . . . . . 6 . Full Trace Events 4 | . . . . 2 1 . . . . . . . . . 1 . Feedback Events . | . . . . . . . . . . . . . . . . . Feedback Blocked . | . . . . . . . . . . . . . . . . . Robot Schematics Acquired . | . . . . . . . . . . . . . . . . . Robots Built . | . . . . . . . . . . . . . . . . . Matter . | . . . . . . . . . . . . . . . . . Time . | . . . . . . . . . . . . . . . . . Total Robot Build Rating . | . . . . . . . . . . . . . . . . . Part Schematics Acquired . | . . . . . . . . . . . . . . . . . Parts Built . | . . . . . . . . . . . . . . . . . Matter . | . . . . . . . . . . . . . . . . . Time . | . . . . . . . . . . . . . . . . . Total Part Build Rating . | . . . . . . . . . . . . . . . . . Parts Repaired . | . . . . . . . . . . . . . . . . . Time 44 | . . . . . . . . 44 . . . . . . . . Parts Recycled . | . . . . . . . . . . . . . . . . . Recycled Matter . | . . . . . . . . . . . . . . . . . Retrieved Matter . | . . . . . . . . . . . . . . . . . Retrieved Components . | . . . . . . . . . . . . . . . . . Parts Scanalyzed . | . . . . . . . . . . . . . . . . . Part Schematics Acquired . | . . . . . . . . . . . . . . . . . Parts Damaged . | . . . . . . . . . . . . . . . . . Bothacking | -11 -10 -10 -9 -8 -7 -7 -7 -6 -5 -5 -5 -5 -4 -4 -4 -4 ------------ Run | Scr Mat Min Mat Mat Fac Low Low Fac Fac Upp Upp War Pro Fac Ext Cet Used RIF Installer . | . . . . . . . . . . . . . . . . . Robots Hacked . | . . . . . . . . . . . . . . . . . Non-combat . | . . . . . . . . . . . . . . . . . Combat . | . . . . . . . . . . . . . . . . . Robot Hacks Applied . | . . . . . . . . . . . . . . . . . Relay Couplers Released . | . . . . . . . . . . . . . . . . . Robots Rewired 11 | . . . . . . 1 . . . . . . . . 10 . Allies Hacked . | . . . . . . . . . . . . . . . . . Hacks Repelled . | . . . . . . . . . . . . . . . . . Allies | -11 -10 -10 -9 -8 -7 -7 -7 -6 -5 -5 -5 -5 -4 -4 -4 -4 -------- Run | Scr Mat Min Mat Mat Fac Low Low Fac Fac Upp Upp War Pro Fac Ext Cet Total Allies 19 | . . 1 . . . 1 . . . . . . . . 17 . Largest Group 10 | . . 1 . . . 1 1 . . . . . . . 10 . Highest-Rated Group 509 | . . 31 . . . 20 20 . . . . . . . 509 . Highest-Rated Ally 156 | . . 31 . . . 20 20 . . . . . . . 156 . Total Orders 3 | . . . . . . 3 . . . . . . . . . . STAY 1 | . . . . . . 1 . . . . . . . . . . ROAM 1 | . . . . . . 1 . . . . . . . . . . FOLLOW 1 | . . . . . . 1 . . . . . . . . . . Ally Attacks 153 | . . . . . . . 13 . . . . . . . 140 . Total Damage 4254 | . . . . . . . 161 . . . . . . . 4093 . Kills 26 | . . . . . . . . . . . . . . . 26 . Allies Corrupted . | . . . . . . . . . . . . . . . . . Allies Melted . | . . . . . . . . . . . . . . . . . Intel | -11 -10 -10 -9 -8 -7 -7 -7 -6 -5 -5 -5 -5 -4 -4 -4 -4 ------- Run | Scr Mat Min Mat Mat Fac Low Low Fac Fac Upp Upp War Pro Fac Ext Cet Robot Analysis Total . | . . . . . . . . . . . . . . . . . Derelict Logs Recovered 7 | . . 1 . . . 2 . . . . 2 . 2 . . . Drone Launches . | . . . . . . . . . . . . . . . . . Drone Recoveries . | . . . . . . . . . . . . . . . . . Exploration | -11 -10 -10 -9 -8 -7 -7 -7 -6 -5 -5 -5 -5 -4 -4 -4 -4 ------------- Run | Scr Mat Min Mat Mat Fac Low Low Fac Fac Upp Upp War Pro Fac Ext Cet Turns Passed 11273 | 74 327 853 578 1858 2201 2553 233 287 60 241 230 310 373 330 689 76 Spaces Moved 8034 | 38 264 641 273 857 1073 1437 106 321 145 354 343 581 707 346 465 83 Core 670 | 13 . . . . . . . 96 8 171 131 7 73 115 34 22 Treads 2006 | . . . . 706 396 802 1 . . . . . . . 101 . Legs 2895 | 25 264 641 268 151 677 635 105 10 . . . . . . 119 . Wheels 16 | . . . 5 . . . . . . . . . . . 11 . Hover . | . . . . . . . . . . . . . . . . . Flight 2447 | . . . . . . . . 215 137 183 212 574 634 231 200 61 Fastest Speed 31 | 50 120 120 90 155 150 150 150 31 34 31 31 34 37 40 37 37 Average Speed 115 | 124 120 120 144 170 175 162 175 56 37 65 58 34 41 65 91 78 Slowest Speed 210 | 200 120 120 180 185 210 210 200 180 100 100 100 100 100 150 180 200 Overloaded Moves . | . . . . . . . . . . . . . . . . . Propulsion Burnouts . | . . . . . . . . . . . . . . . . . Robots Hopped 10 | . . . . . . . . . . . . 2 . 3 5 . Cave-ins Triggered 4 | . . . . 1 . . . . . . 1 1 . 1 . . Exploration Rate (%) 44 | 4 36 98 25 60 24 96 26 11 7 45 58 77 83 12 65 23 Regions Visited 16 Branch Regions 9 Pre-discovered Areas 3 | . . . . . . . . . . . 2 . 1 . . . Known Exits Taken 10 | . 1 . . . . 1 . 1 1 1 1 1 1 1 1 . Unknown Exits Taken 6 | 1 . 1 1 1 1 . 1 . . . . . . . . . Scrap Searched 12 | . . 1 . . . 2 . . . 1 4 . 4 . . . Spaces Dug 69 | . . . 9 8 . 19 . 8 . 1 3 12 1 8 . . Terrain Destroyed 205 | . . . 37 8 65 55 . 8 . 1 3 12 1 8 6 1 Melee 47 | . . . . 8 . 6 . 8 . 1 3 12 1 8 . . Projectile 7 | . . . . . . . . . . . . . . . 6 1 AOE 151 | . . . 37 . 65 49 . . . . . . . . . . Terrain Rammed . | . . . . . . . . . . . . . . . . . Walls Destroyed . | . . . . . . . . . . . . . . . . . Machines Disabled . | . . . . . . . . . . . . . . . . . Actions | -11 -10 -10 -9 -8 -7 -7 -7 -6 -5 -5 -5 -5 -4 -4 -4 -4 --------- Run | Scr Mat Min Mat Mat Fac Low Low Fac Fac Upp Upp War Pro Fac Ext Cet Total 9432 | 56 277 714 395 1123 1284 1567 126 415 149 360 365 667 782 410 651 91 Wait 590 | 3 . 52 53 116 76 18 . 51 4 . 10 72 64 39 32 . Move 7997 | 37 263 640 272 856 1072 1436 105 320 144 353 341 576 706 339 454 83 Hop 9 | . . . . . . . . . . . . 1 . 3 5 . Pick Up 66 | 4 9 6 8 12 9 3 . 5 . 1 1 2 2 . 4 . Fast Attach 107 | 7 . . 6 14 18 14 3 6 1 2 3 . 4 6 23 . Attach 32 | . . . 3 4 5 3 . 9 . 1 1 . . 1 2 3 Detach 17 | . . . 3 2 2 3 . 2 . 1 . . 1 . 2 1 Swap 53 | . 1 1 8 14 8 4 . 4 . . 2 1 . . 9 1 Drop 115 | . 4 7 8 27 20 7 1 10 . 1 3 2 3 . 22 . Fire 294 | 5 . 8 34 70 74 47 17 . . . . . . . 38 1 Melee 74 | . . . . 8 . 15 . 8 . 1 3 12 2 22 1 2 Ram . | . . . . . . . . . . . . . . . . . Kick 1 | . . . . . . . . . . . . . . . 1 . Crush . | . . . . . . . . . . . . . . . . . Escape Stasis 2 | . . . . . . . . . . . 1 1 . . . . Rewire 75 | . . . . . . 17 . . . . . . . . 58 . Trap . | . . . . . . . . . . . . . . . . . Miscellaneous . | . . . . . . . . . . . . . . . . . Route ------- -11/Scrapyard -10/Materials (discovered 2 exits: *Min x2) -10/Mines (discovered 2 exits: [*Mat x2]) -9/Materials (discovered 2 exits: *Mat / [*Sto]) -8/Materials -7/Factory -7/Lower Caves -7/Lower Caves -6/Factory -5/Factory -5/Upper Caves -5/Upper Caves (discovered 2 exits: *Fac / *War) -5/Warlord -4/Proximity Caves -4/Factory (discovered 2 exits: *Res / *Ext) -4/Extension (discovered 3 exits: *Res x2 / *Cet) -4/Cetus (discovered 1 exit: *Res) History --------- Turn | Location | Event 18 | -11/Scrapyard | Discovered new exit (range 15) 75 | -11/Scrapyard | Entered Materials 105 | -10/Materials | Discovered new exit (range 7) 302 | -10/Materials | Identified exit to Mines 310 | -10/Materials | Build established: Mutant 402 | -10/Materials | Entered Mines 470 | -10/Mines | Met a Derelict who couldn't figure out how to use a Trap Extractor 576 | -10/Mines | Discovered new exit (range 9) 730 | -10/Mines | Learned Materials garrison access intel 759 | -10/Mines | Received a Mining Laser from a helpful Derelict 759 | -10/Mines | Discovered new exit (range 10) 936 | -10/Mines | Received a Rocket Launcher from a helpful Derelict 996 | -10/Mines | Found the Drone Emporium 1083 | -10/Mines | A weapon hastily lodged in a ceiling crevice suddenly fell to the ground 1255 | -10/Mines | Entered Materials 1255 | -9/Materials | Evolved 2 slots: Utility x2 1369 | -9/Materials | Discovered new exit (range 3) 1814 | -9/Materials | Discovered new exit (range 4) 1833 | -9/Materials | Entered another Materials area 1833 | -8/Materials | Evolved 2 slots: Utility x2 1834 | -8/Materials | Loaded intel: 1 garrison access location 2747 | -8/Materials | Build established: Scavenger-Mutant 2802 | -8/Materials | Crushed by falling debris 3646 | -8/Materials | Discovered new exit (range 9) 3691 | -8/Materials | Entered Factory 3691 | -7/Factory | Evolved 2 slots: Power x1, Propulsion x1 4302 | -7/Factory | Lost 5 parts (1p1n1u2w) 5741 | -7/Factory | Build established: Mutant 5758 | -7/Factory | Garrison activated, responded to threat 5832 | -7/Factory | Discovered new exit (range 22) 5892 | -7/Factory | Entered Lower Caves 6543 | -7/Lower Caves | Gauss Rifle stolen by Master Thief 6834 | -7/Lower Caves | Encountered a Warlord checkpoint 7339 | -7/Lower Caves | Attacked by a faux Warlord 7391 | -7/Lower Caves | Lost 4 parts (1p1n1u1w) 7869 | -7/Lower Caves | Attracted the attention of an 0b10 outpost 7878 | -7/Lower Caves | Core integrity fell below 50% 7966 | -7/Lower Caves | Lost 3 parts (1p1n1w) 8048 | -7/Lower Caves | Identified exit to Lower Caves 8284 | -7/Lower Caves | Learned Factory terminal intel 8445 | -7/Lower Caves | Entered another Lower Caves area 8445 | -7/Lower Caves | Accompanied by 1 ally 8454 | -7/Lower Caves | Attracted the attention of an 0b10 checkpoint 8656 | -7/Lower Caves | Discovered new exit (range 15) 8678 | -7/Lower Caves | Entered Factory 8678 | -6/Factory | Evolved 2 slots: Propulsion x1, Utility x1 8679 | -6/Factory | Loaded intel: 20 terminal locations 8960 | -6/Factory | Discovered new exit (range 15) 8965 | -6/Factory | Identified exit to Factory 8965 | -6/Factory | Entered another Factory area 8965 | -5/Factory | Evolved 2 slots: Utility x2 8969 | -5/Factory | Spotted B-75 Beast 9021 | -5/Factory | Discovered new exit (range 12) 9025 | -5/Factory | Identified exit to Upper Caves 9025 | -5/Factory | Entered Upper Caves 9081 | -5/Upper Caves | Spotted B-75 Beast 9264 | -5/Upper Caves | Discovered new exit (range 6) 9266 | -5/Upper Caves | Identified exit to Upper Caves 9266 | -5/Upper Caves | Entered another Upper Caves area 9267 | -5/Upper Caves | Spotted B-75 Beast 9292 | -5/Upper Caves | Discovered new exit (range 14) 9325 | -5/Upper Caves | Crushed by falling debris 9326 | -5/Upper Caves | System corruption reached 10% 9356 | -5/Upper Caves | Lost 3 parts (1n2u) 9494 | -5/Upper Caves | Learned location of Armory (-3) 9494 | -5/Upper Caves | Discovered new exit (range 7) 9496 | -5/Upper Caves | Identified exit to Warlord 9496 | -5/Upper Caves | Entered Warlord 9508 | -5/Warlord | System corruption cleaned by Quarantine Array 9630 | -5/Warlord | Build established: Derelict-Mutant 9643 | -5/Warlord | Met Warlord 9655 | -5/Warlord | Warlord's base attacked by MAIN.C 9773 | -5/Warlord | Crushed by falling debris 9804 | -5/Warlord | Lost 3 parts (1n2u) 9804 | -5/Warlord | Discovered new exit (range 9) 9806 | -5/Warlord | Identified exit to Proximity Caves 9806 | -5/Warlord | Entered Proximity Caves 9893 | -4/Proximity Caves | Spotted B-86 Titan 10171 | -4/Proximity Caves | Discovered new exit (range 6) 10174 | -4/Proximity Caves | Identified exit to Factory 10177 | -4/Proximity Caves | Learned Research stockpile data 10179 | -4/Proximity Caves | Entered Factory 10179 | -4/Factory | Evolved 2 slots: Power x1, Utility x1 10196 | -4/Factory | Lost 7 parts (2p2n2u1w) 10291 | -4/Factory | Discovered new exit (range 17) 10470 | -4/Factory | Crushed by falling debris 10483 | -4/Factory | Discovered new exit (range 8) 10486 | -4/Factory | Identified exit to Extension 10509 | -4/Factory | Entered Extension 10522 | -4/Extension | Rescued a captive Derelict 10523 | -4/Extension | Rescued a captive Derelict 10533 | -4/Extension | Rescued a captive Derelict 10538 | -4/Extension | Rescued a captive Derelict 10642 | -4/Extension | Rescued A7 10743 | -4/Extension | Rescued a captive Derelict 10743 | -4/Extension | Rescued a captive Derelict 10840 | -4/Extension | Spotted B-86 Titan 10847 | -4/Extension | Spotted B-86 Titan 10875 | -4/Extension | Allies destroyed B-86 Titan 10879 | -4/Extension | Allies destroyed B-86 Titan 10950 | -4/Extension | Found Prototype Protection 10950 | -4/Extension | Identified Med. Regenerative Plating 10951 | -4/Extension | Extracted ID and sensor layout for unrecognized location from A7's data core 10987 | -4/Extension | Build established: Scavenger-Mutant 10988 | -4/Extension | Discovered new exit (range 3) 10990 | -4/Extension | Identified exit to Research 11109 | -4/Extension | Disrupted transfer network 11179 | -4/Extension | Discovered new exit (range 21) 11180 | -4/Extension | Discovered exit to Research (range 21) 11197 | -4/Extension | Identified exit to Cetus 11198 | -4/Extension | Entered Cetus 11209 | -4/Cetus | Lost 13 parts (3p4n4u2w) 11214 | -4/Cetus | Spotted Cetus Guard 11218 | -4/Cetus | Spotted Cetus Guard 11225 | -4/Cetus | Core integrity fell below 50% 11225 | -4/Cetus | Spotted Cetus Guard 11225 | -4/Cetus | Spotted Cetus Guard 11247 | -4/Cetus | Discovered exit to Research (range 22) 11269 | -4/Cetus | Core integrity fell below 20% 11274 | -4/Cetus | Destroyed by Cetus Guard with Advanced Variable Charge Gun Last Messages --------------- 11224_ Slug penetrates Wall. 11226_ Penetrated by Slug. 11226_ Impulse Thruster destroyed. 11228_ Slug penetrates Wall. 11228_ Penetrated by Slug. 11242_ Slug penetrates Wall. 11246_ KE Penetrator destroyed. 11246_ Slug penetrates Wall. 11247_ EXIT=FOUND: RESEARCH 11248_ Slug penetrates Wall. 11249_ Penetrated by Slug. 11263_ Critical hit. 11263_ Impulse Thruster destroyed. 11264_ Enh. Optical Array destroyed. 11264_ Penetrated by Slug. 11268_ Slug penetrates Wall. 11270_ Slug penetrates Cetus Guard. 11271_ Penetrated by Slug. 11274_ Cetus Guard Prototype Ballistic Gun severed. 11274_ Penetrated by Slug. Map ----- +----------------------------------------------------+ | ??????????????????????# #??????????????????????? | | ??????????????????????# < #??????????????????????? | | ??????????????????????# #??????????????????????? | | ??????????????????????# #??????????????????????? | | ??????????????????????# #??????????????????????? | | ??????????????????????# #??????????????????????? | | ??????????????????????# #??????????????????????? | | ?????????????????????## #??????????????????????? | | ?????????????????????#" #??????????????????????? | | ??????????????????????# #??????????????????????? | | ??????????????????????# #??????????????????????? | | ??????????????????????# #??????????????????????? | | ??????????????????????# #??????????????????????? | | ??????????????????????# #??????????????????????? | | ??????????????????????# #??????????????????????? | | ??????????????????????# #??????????????????????? | | ??????????????????????# #??????????????????????? | | ??????????????????????# #??????????????????????? | | ??????????????????????# #??????????????????????? | | ??????????????????????# #??????????????????????? | | ??????????????????????# #??????????????????????? | | ??????????????????????# #??????????????????????? | | ??????????????????????# #??????????????????????? | | ??????????????????????# #??????????????????????? | | ??????????????????????# #??????????????????????? | | ??????????????????????# @#??????????????????????? | | ?????????????????????#; Y#??????????????????????? | | ?????????????????????##YY #??????????????????????? | | ??????????????????????# Y #??????????????????????? | | ??????????????????????# ;??????????????????????? | | ??????????????????????# #??????????????????????? | | ??????????????????????# #??????????????????????? | | ??????????????????????# #??????????????????????? | | ??????????????????????# #??????????????????????? | | ????????????????????### ##?????????????????????? | | ?##############"#####"# "#"### #?????????????? | | ?# +???????????? | | ?# +???????????? | | ?# +???????????? | | ?############################### ###???????????? | | ?????????????????????????????????###?????????????? | | ?????????????????????????????????????????????????? | | ?????????????????????????????????????????????????? | | ?????????????????????????????????????????????????? | | ?????????????????????????????????????????????????? | | ?????????????????????????????????????????????????? | | ?????????????????????????????????????????????????? | | ?????????????????????????????????????????????????? | | ?????????????????????????????????????????????????? | | ?????????????????????????????????????????????????? | +----------------------------------------------------+ Best States ------------- Heat Dissipation 63 Coolant Potential 80 Energy Generation 50 Energy Capacity 730 Matter Stores 300 Matter Capacity 300 Sight Range 22 Terrain Scan Range 24 Terrain Scan Density 10 ECM Strength 3 Additional Mass Support 18 Armor Coverage 450 Evasion (%) 73 Targeting Accuracy 6 Melee Accuracy 8 Core Analysis 8 Armor Integrity Analysis 50 Recoil Reduction 6 Offensive Hacking 12 Item Schematics ----------------- None Robot Schematics ------------------ None Fabricated ------------ Nothing Alien Tech Used ----------------- None Achievements -------------- None Challenges ------------ None Game ------ Seed FusionOpticalBattery Manual? 0 Play Time 01:57:41 Cumulative 124.9 hours Start 2021.02.10 @ 13:54:28 End 2021.02.10 @ 15:52:43 Sessions 1 Manual Loads 0 Difficulty Rogue Special Mode None Game No. 120 Rogue 120 Adventurer 0 Explorer 0 Win Type - Total 4 Types 3/0/0/1/0/0/0/0/0 Lore% 62 Gallery% 65 Achievement% 51 Wizard Run 0 Options --------- ASCII 0 Keyboard 1 Movement Vi Keybinds 0 Fullscreen 1 Font 18/X11 Map View 76x50 Tactical HUD 1 Map Filters NONE Filters NONE Steam 1 RUN: 477f98b6-6795-4ff0-a172-a9fcf4f28d2b